[Event "87th Spanish Championship 2022"]
[Site "Linares"]
[Date "2022.08.13"]
[Round "4.23"]
[White "Luque Saiz, Andres"]
[Black "Horcajuelo Rocamora, Martin"]
[Result "1/2-1/2"]
[ECO "B90"]
[WhiteElo "2289"]
[BlackElo "2107"]
[Annotator "TA"]
[PlyCount "78"]
[EventDate "2022.08.11"]
[EventType "swiss"]
[EventCountry "ESP"]
[SourceTitle "playchess.com"]
[Source "ChessBase"]
[SourceQuality "1"]
[TimeControl "5400+30"]

{[%evp 12,78,17,22,34,8,31,0,0,8,0,0,0,0,0,0,0,0,0,10,16,0,0,0,0,-13,-16,-13,-11,-14,-11,-12,-16,-75,-24,-94,-10,-56,-9,-45,-39,-53,-42,-56,-39,-110,-59,-91,-39,-52,-29,-27,0,-14,0,-43,-57,-62,-43,-55,0,0,0,0,0,0,0,0,6]} 1. e4 {[%emt 0:00:02]} c5 {[%emt 0:00:06]} 2. Nf3 {[%emt 0:00:05]} d6 {[%emt 0:00:05]} 3. d4 {[%emt 0:00:10]} cxd4 {[%emt 0:00:04]} 4. Nxd4 {[%emt 0:00:05]} Nf6 {[%emt 0:00:07]} 5. Nc3 {[%emt 0:00:05]} a6 {[%emt 0:00:05]} 6. h3 {[%emt 0:01:58]} e5 {[%emt 0:00:06]} 7. Nde2 {[%emt 0:00:03]} h5 {[%emt 0:00:07] B90: Sicilian Najdorf: Unusual White 6th moves, 6 Be3 Ng4 and 6 Be3 e5.} 8. Bg5 {[%emt 0:01:32]} Be6 {[%emt 0:00:06]} 9. Bxf6 {[%emt 0:00:35]} Qxf6 {[%emt 0:00:07]} 10. Nd5 {[%emt 0:00:02]} Qd8 {[%emt 0:00:09]} 11. Nec3 {[%emt 0:00:05]} g6 {[%emt 0:00:07]} 12. Bc4 {[%emt 0:03:59]} Bh6 {[%emt 0:00:08]} 13. O-O {[%emt 0:01:16]} O-O {[%emt 0:00:07]} 14. Qd3 {[%emt 0:03:39]} Nc6 {[%emt 0:00:07]} (14... b5 $5 15. Bb3 Nd7 $11) 15. Bb3 {[%emt 0:00:17]} Rc8 {[%emt 0:00:56]} 16. Rad1 {[%emt 0:14:47]} Nd4 {[%emt 0:00:36] 16...Kg7 is not played anymore.} 17. f4 {[%emt 0:00:58]} Nxb3 {[%emt 0:05:57] [#]} 18. cxb3 $146 {[%emt 0:02:20]} ({Predecessor:} 18. axb3 Bxd5 19. Nxd5 Bxf4 20. g3 Qg5 21. Kf2 Bxg3+ 22. Qxg3 Rxc2+ 23. Kf3 Qxg3+ 24. Kxg3 Rxb2 {½-½ (30) Shpakovsky,A (2544)-Olofsson,D (2500) ICCF email 2020}) 18... Bxd5 {[%emt 0:03:35]} 19. Nxd5 {[%emt 0:06:06]} exf4 {[%emt 0:00:30]} 20. Nxf4 {[%emt 0:00:21]} Qg5 {[%emt 0:00:55]} 21. Nd5 {[%emt 0:09:27]} ({Avoid the trap} 21. Qxd6 $2 Rfd8 22. Qb6 Rxd1 23. Rxd1 Qxf4 $19) 21... Bg7 {[%emt 0:01:32]} 22. Rf2 {[%emt 0:00:31]} (22. Qd2 $11 {keeps the balance.} Qxd2 23. Rxd2) 22... Be5 {[%emt 0:03:07]} (22... Rc1 $1 $17 23. Rxc1 Qxc1+ 24. Qf1 Qg5) 23. Nb6 {[%emt 0:09:27] [#]} (23. Qd2 $11 Qxd2 24. Rfxd2) 23... Rcd8 {[%emt 0:03:01]} (23... Rc1 $1 $17 {[%cal Og5e3] ...Qe3! is the strong threat.} 24. Rff1 Rxd1 25. Rxd1 Bxb2) 24. Nc4 {[%emt 0:26:15] Inhibits Qe3.} (24. b4 $11) 24... Bg7 {[%emt 0:10:16]} (24... b5 $15 {was preferrable.} 25. Nb6 Kg7) 25. Qf3 {[%emt 0:02:25]} ({Don't blunder} 25. Nxd6 $2 Be5 26. Qf3 Rxd6 $19) 25... b5 {[%emt 0:01:54]} 26. Ne3 {[%emt 0:05:36]} Be5 {[%emt 0:02:04]} 27. g4 {[%emt 0:00:16]} Kg7 {[%emt 0:04:27]} 28. Kg2 {[%emt 0:01:39]} (28. Kh1 $15) 28... Rc8 {[%emt 0:03:29]} (28... hxg4 $17 29. hxg4 f6) 29. Kh1 {[%emt 0:06:36] [#]} h4 {[%emt 0:01:00]} ({Black should try} 29... hxg4 $1 $17 30. Nxg4 Rc1) 30. Kg2 $15 {[%emt 0:01:41]} Bg3 {[%emt 0:01:35]} 31. Re2 {[%emt 0:00:33]} Rce8 {[%emt 0:04:03]} 32. Rd5 {[%emt 0:02:08]} Qe7 {[%emt 0:01:01]} 33. Nc2 {[%emt 0:00:30][%cal Be3c2,Bc2b4,Bb4d3][%mdl 32]} Rc8 {[%emt 0:01:32]} 34. Rd1 {[%emt 0:00:40]} Rc5 {[%emt 0:02:07]} 35. Nb4 {[%emt 0:00:36]} Qb7 {[%emt 0:07:16]} (35... a5 $15 36. Nd5 Qg5) 36. Nd3 {[%emt 0:00:58] The position is equal.} Rc6 {[%emt 0:03:10]} 37. Nb4 {[%emt 0:00:14]} Rc5 {[%emt 0:00:24]} 38. Nd3 {[%emt 0:00:03]} Rc6 {[%emt 0:00:07]} 39. Nb4 {[%emt 0:01:24]} Rc5 {[%emt 0:00:07] Weighted Error Value: White=0.16 (very precise) /Black=0.14 (very precise)} 1/2-1/2

[Event "87th Spanish Championship 2022"]
[Site "Linares"]
[Date "2022.08.13"]
[Round "4.24"]
[White "Jimenez Fernandez, Rebeca"]
[Black "Garrido Diaz, Jose Antonio"]
[Result "1/2-1/2"]
[ECO "B72"]
[WhiteElo "1908"]
[BlackElo "2306"]
[Annotator "TA"]
[PlyCount "62"]
[EventDate "2022.08.11"]
[EventType "swiss"]
[EventCountry "ESP"]
[SourceTitle "playchess.com"]
[Source "ChessBase"]
[SourceQuality "1"]
[TimeControl "5400+30"]

{[%evp 10,62,53,47,45,42,50,50,50,43,43,31,15,10,19,28,25,0,0,-104,-75,-257,-285,-248,186,174,402,398,379,202,234,241,211,221,226,220,445,465,689,592,945,893,1058,350,664,0,0,0,0,0,0,0,0,0,0]} 1. e4 {[%emt 0:00:02]} c5 {[%emt 0:00:19]} 2. Nf3 {[%emt 0:00:05]} d6 {[%emt 0:00:09]} 3. d4 {[%emt 0:00:03]} cxd4 {[%emt 0:00:06]} 4. Nxd4 {[%emt 0:00:04]} Nf6 {[%emt 0:00:06]} 5. Nc3 {[%emt 0:00:04]} g6 {[%emt 0:00:11]} 6. Be3 {[%emt 0:00:06]} Nc6 {[%emt 0:00:17] B72: Sicilian Dragon: 6 Be3, lines with h3+Bc4 and sidelines.} 7. f3 {[%emt 0:00:05] Against Ng4} h5 {[%emt 0:00:12]} 8. Qd2 {[%emt 0:06:56]} Nxd4 {[%emt 0:00:12] White is slightly better.} 9. Bxd4 {[%emt 0:00:28]} Bh6 {[%emt 0:00:23]} 10. Be3 {[%emt 0:00:30]} Bxe3 {[%emt 0:00:22]} 11. Qxe3 {[%emt 0:00:04]} Be6 $1 {[%emt 0:03:22]} 12. O-O-O $36 {[%emt 0:02:58][%mdl 2048] Black is under pressure.} Qa5 {[%emt 0:04:07]} 13. Kb1 {[%emt 0:06:04] [#]} O-O $146 {[%emt 0:09:04][%cal Bh8f8,Bf8c8,Bc8c3][%mdl 32]} ({Predecessor:} 13... Rc8 14. a3 O-O 15. Be2 Rc7 16. Bd3 Rxc3 17. bxc3 Qxa3 18. Qd4 Ba2+ 19. Ka1 Bc4+ 20. Kb1 b5 21. f4 Rb8 22. e5 b4 {0-1 (22) Martin Carmona,G (2285)-Matinian,N (2470) Chess.com INT 2021}) 14. f4 {[%emt 0:22:34]} (14. Qe1 $11) 14... Rfc8 $1 $17 {[%emt 0:22:34][%cal Oc8c3] And now ...Rxc3! would win.} 15. f5 $2 {[%emt 0:05:04] [#]} (15. a4 $17 {was called for.}) 15... Rxc3 $1 $19 {[%emt 0:21:41][%mdl 512]} 16. bxc3 {[%emt 0:00:28]} Bxa2+ {[%emt 0:07:57][%mdl 8192]} (16... Qxa2+ $19 17. Kc1 Nxe4 $1 {[%mdl 512]} 18. Qxe4 Bxf5) 17. Kb2 $18 {[%emt 0:03:18] Ra1 is the strong threat.} e5 $2 {[%emt 0:16:28]} (17... Ng4 {keeps fighting.} 18. Qd4 gxf5) 18. Ra1 {[%emt 0:07:22]} Ng4 {[%emt 0:00:11]} 19. Qg3 {[%emt 0:06:35]} (19. Qf3 $142) 19... Qb6+ {[%emt 0:02:13]} 20. Kxa2 {[%emt 0:00:12]} Rc8 {[%emt 0:04:24]} 21. Rb1 $1 {[%emt 0:02:20]} Qa5+ {[%emt 0:00:08]} 22. Kb2 {[%emt 0:00:25]} h4 $2 {[%emt 0:01:11]} (22... Rc6) 23. Qf3 {[%emt 0:04:23] aiming for fxg6.} (23. Qxg4 Qxc3+ 24. Ka2 Qa5+ 25. Kb2 Qc3+ 26. Ka2 Qa5+ 27. Kb2 Qc3+ $11) 23... Qc5 {[%emt 0:01:38]} (23... gxf5 $142 24. exf5 Nf6) 24. Kc1 {[%emt 0:06:50]} (24. Qxg4 Qxc3+ 25. Ka2 Qa5+ 26. Kb2 Qc3+ 27. Ka2 Qa5+ 28. Kb2 Qc3+ $11) 24... Nf2 {[%emt 0:01:19] [#]} 25. fxg6 {[%emt 0:07:42]} Rc7 {[%emt 0:01:33]} (25... fxg6 26. Bc4+) 26. Rg1 $2 {[%emt 0:05:16]} (26. Rb5 Qa3+ 27. Kb1 Nxh1 28. Qh5 fxg6 29. Qxg6+ Kf8 30. Qf6+ Ke8 31. Qe6+ Kf8 32. Qf6+ Ke8 33. Be2) 26... d5 $2 {[%emt 0:00:13]} (26... Nxe4 27. Qxe4 Qxg1) 27. Rb5 $2 {[%emt 0:02:28]} (27. exd5 $18 Ne4 {[#]} 28. Qxe4 $1 Qxg1 29. gxf7+ Rxf7 30. Kd2 $1 Qf2+ 31. Be2) 27... Qa3+ $11 {[%emt 0:00:25] The position is equal.} 28. Rb2 $1 {[%emt 0:03:39]} ({Not} 28. Kb1 $2 Nxe4 29. Qxe4 (29. gxf7+ $2 Kf8 $19) 29... dxe4 30. gxf7+ Kf8 $19) 28... Qa1+ {[%emt 0:00:18]} 29. Rb1 {[%emt 0:00:25]} Qa3+ {[%emt 0:00:04]} 30. Rb2 {[%emt 0:01:55]} Qa1+ {[%emt 0:00:02]} 31. Rb1 {[%emt 0:00:36]} Qa3+ {Weighted Error Value: White=0.61/Black=0.76} 1/2-1/2

[Event "87th Spanish Championship 2022"]
[Site "Linares"]
[Date "2022.08.13"]
[Round "4.25"]
[White "Garrido Outon, Alex"]
[Black "Garrido Diaz, Ernesto"]
[Result "1-0"]
[ECO "C81"]
[WhiteElo "2436"]
[BlackElo "2146"]
[Annotator "TA"]
[PlyCount "77"]
[EventDate "2022.08.11"]
[EventType "swiss"]
[EventCountry "ESP"]
[SourceTitle "playchess.com"]
[Source "ChessBase"]
[SourceQuality "1"]
[TimeControl "5400+30"]

{[%evp 31,77,6,13,0,0,0,24,16,23,26,17,14,12,21,20,16,22,21,45,46,72,43,93,82,132,100,88,112,105,103,137,85,220,122,211,210,330,330,1273,257,249,258,251,245,254,237,228,222]} 1. e4 {[%emt 0:00:02]} e5 {[%emt 0:00:06]} 2. Nf3 {[%emt 0:00:07]} Nc6 {[%emt 0:00:04]} 3. Bb5 {[%emt 0:00:04][%cal Bf1b5,Bb5a4,Ba4b3,Bb3c4][%mdl 32]} a6 {[%emt 0:00:24]} 4. Ba4 {[%emt 0:00:05]} Nf6 {[%emt 0:00:21]} 5. O-O {[%emt 0:00:08]} Nxe4 {[%emt 0:00:49]} 6. d4 {[%emt 0:00:27]} b5 {[%emt 0:00:11]} 7. Bb3 {[%emt 0:00:05]} d5 {[%emt 0:00:07]} 8. dxe5 {[%emt 0:00:09]} Be6 {[%emt 0:00:04]} 9. Qe2 {[%emt 0:02:22]} Be7 {[%emt 0:00:25]} 10. Rd1 {[%emt 0:00:33]} O-O {[%emt 0:00:32]} 11. c4 {[%emt 0:01:46]} bxc4 {[%emt 0:00:11]} 12. Bxc4 {[%emt 0:00:12]} Bc5 {[%emt 0:00:21]} 13. Be3 {[%emt 0:01:01]} Bxe3 {[%emt 0:00:41]} 14. Qxe3 {[%emt 0:00:05]} Qb8 {[%emt 0:00:54]} 15. Bb3 {[%emt 0:00:23]} Na5 {[%emt 0:01:20]} 16. Nbd2 {[%emt 0:11:08]} Qa7 {[%emt 0:09:38]} 17. Nd4 {[%emt 0:08:13] C81: Open Ruy Lopez: Keres Variation (9 Qe2).} Nxd2 {[%emt 0:14:53]} 18. Qxd2 {[%emt 0:00:27]} Nxb3 {[%emt 0:02:37]} 19. Nxb3 {[%emt 0:00:51] White has an edge.} c5 {[%emt 0:01:26]} 20. Rac1 {[%emt 0:00:05] [#]} Rfc8 $146 {[%emt 0:02:06]} ({Predecessor:} 20... Rac8 21. Qg5 c4 22. Nd4 Rc5 23. Qd2 Qb6 24. h3 f6 25. Qe3 Rcc8 26. Re1 Rce8 {½-½ (57) Lee,A (2291)-Grey,P (2000) San Francisco 2012}) 21. Qa5 {[%emt 0:01:18][%cal Rb3c5]} c4 {[%emt 0:11:10]} 22. Nd4 {[%emt 0:00:06]} Rab8 {[%emt 0:03:23]} 23. Qc3 {[%emt 0:02:46]} Qe7 {[%emt 0:02:47]} 24. f4 {[%emt 0:10:28]} g6 {[%emt 0:03:41][%cal Oa6a5] Prevents f5.} 25. Rd2 {[%emt 0:04:09]} Kh8 {[%emt 0:04:02]} 26. Rf2 {[%emt 0:05:01] White is more active.} Rb6 {[%emt 0:02:01]} ({Better is} 26... Qb4 $14) 27. h3 $1 $16 {[%emt 0:05:29]} f5 {[%emt 0:09:31]} (27... Bf5 $142) 28. exf6 {[%emt 0:06:07]} Qxf6 {[%emt 0:00:18]} 29. Re1 {[%emt 0:00:03]} Bf5 {[%emt 0:02:25]} 30. Re5 {[%emt 0:04:57]} Be4 {[%emt 0:02:00]} 31. Ne6 $40 {[%emt 0:00:42][%mdl 128] White attacks with force.} ({White should play} 31. Ne2 $1) 31... Kg8 {[%emt 0:02:40] [#]} (31... h6 $16) 32. Ng5 {[%emt 0:01:10]} (32. f5 $1 $18 {[%cal Rf5g6]}) 32... Rd6 {[%emt 0:01:10]} (32... Bd3 $16) 33. Rd2 $18 {[%emt 0:02:38]} ({Don't do} 33. Nxe4 $6 dxe4 34. Qe3 (34. Rxe4 Rd1+ 35. Kh2 Qxc3 $16) 34... Rcd8 35. Qxe4 Rd4 $16) 33... Bb1 {[%emt 0:06:51]} (33... a5 $142 34. Qd4 (34. Nxe4 dxe4 35. Rxd6 Qxd6 $18) (34. Qxa5 Qd8 $18) 34... Rdc6 35. Nxe4 dxe4 36. Qxe4 Rd6) 34. Rdxd5 {[%emt 0:05:59]} ({Weaker is} 34. Rexd5 Qxc3 35. bxc3 Rxd5 36. Rxd5 Bxa2 $16) 34... h6 $2 {[%emt 0:05:37] [#]} (34... Rxd5 35. Re8+ (35. Rxd5 Qxc3 36. bxc3 Bxa2 $14) 35... Rxe8 36. Qxf6 Rd1+ 37. Kh2 Rd7) 35. Rxd6 $2 {[%emt 0:01:45]} (35. Qd4 $1 hxg5 36. Rxd6 Qxf4 37. Rd8+ Rxd8 38. Qxd8+ Qf8 39. Re8 Qxe8 40. Qxe8+ Kg7 41. Qe7+ Kg8 42. Qe6+ Kg7 43. Qxc4) 35... Qxd6 {[%emt 0:00:11] [#]} 36. Re8+ $3 {[%emt 0:01:29][%mdl 512]} Rxe8 {[%emt 0:01:09]} 37. Qxc4+ {[%emt 0:00:04]} Re6 {[%emt 0:00:29]} 38. Nxe6 {[%emt 0:00:10] White threatens Ng5+ and mate.} Bd3 {[%emt 0:01:11]} 39. Qd4 {[%emt 0:00:25] Weighted Error Value: White=0.47/Black=0.28 (precise)} 1-0

[Event "87th Spanish Championship 2022"]
[Site "Linares"]
[Date "2022.08.13"]
[Round "4.26"]
[White "Garcia Ramos, Daniel"]
[Black "Pomes Marcet, Juan"]
[Result "1-0"]
[ECO "A25"]
[WhiteElo "2438"]
[BlackElo "2233"]
[Annotator "TA"]
[PlyCount "155"]
[EventDate "2022.08.11"]
[EventType "swiss"]
[EventCountry "ESP"]
[SourceTitle "playchess.com"]
[Source "ChessBase"]
[SourceQuality "1"]
[TimeControl "5400+30"]

{[%evp 9,155,0,16,2,46,-7,-6,1,-10,-11,-1,-2,12,18,14,0,0,-11,0,0,0,0,29,-9,0,-19,-9,-17,-12,-15,-1,-8,7,0,7,8,10,7,16,8,26,9,9,0,33,9,9,21,29,0,18,0,21,41,32,0,0,0,0,0,46,46,46,46,46,46,46,46,46,46,46,46,46,46,46,46,46,31,58,6,106,139,122,118,195,22,22,29,39,37,45,45,129,135,137,119,127,37,42,37,51,0,55,0,0,0,42,42,105,105,233,232,233,233,233,233,233,80,233,233,233,211,442,437,415,434,390,383,319,335,1188,939,10131,7508,3515,684,1891,1756,1291,984,29975,29976,29977,29978,29981,29982,29990,29991]} 1. c4 {[%emt 0:00:01]} e5 {[%emt 0:00:10]} 2. Nc3 {[%emt 0:00:12]} d6 {[%emt 0:00:14]} 3. g3 {[%emt 0:01:25]} Nc6 {[%emt 0:00:35]} 4. Bg2 {[%emt 0:00:04]} Be6 {[%emt 0:00:28]} 5. Nd5 {[%emt 0:01:33]} Qd7 {[%emt 0:04:06]} 6. e3 {[%emt 0:00:29] A25: English Opening vs King's Indian with ...Nc6 but without early d3.} Nd8 7. d3 {[%emt 0:06:10]} (7. e4 $14) 7... c6 $11 {[%emt 0:01:40]} 8. Nc3 {[%emt 0:00:04] The position is equal.} Nf6 {[%emt 0:04:10] [#]} 9. Nf3 $146 {[%emt 0:03:55]} ({Predecessor:} 9. h3 h6 10. Nge2 d5 11. cxd5 cxd5 12. d4 Bd6 13. dxe5 Bxe5 14. f4 Bxc3+ 15. Nxc3 {1-0 (27) Gonzalez Rodriguez,J-Silva Ortiz,M Bogota 1986}) 9... Bh3 {[%emt 0:16:46]} 10. O-O {[%emt 0:02:08]} Bxg2 {[%emt 0:05:18]} 11. Kxg2 {[%emt 0:00:15]} g6 {[%emt 0:00:51]} 12. e4 {[%emt 0:09:45]} Bg7 {[%emt 0:03:10]} 13. Be3 {[%emt 0:28:30]} Ne6 {[%emt 0:11:30]} 14. d4 {[%emt 0:02:09]} exd4 {[%emt 0:03:19]} 15. Nxd4 {[%emt 0:01:41]} O-O {[%emt 0:00:26]} 16. Qf3 {[%emt 0:02:25]} Rfe8 {[%emt 0:08:08]} 17. Nb3 {[%emt 0:02:14] Inhibits Nc5.} Qe7 {[%emt 0:04:43]} 18. Rfe1 {[%emt 0:05:31]} Nd7 {[%emt 0:02:09]} (18... h5 {seems wilder.} 19. Rad1 Ng4 20. Bd4 Be5) 19. Rad1 {[%emt 0:03:53]} h5 {[%emt 0:09:00]} 20. Qe2 {[%emt 0:02:25]} Ndc5 {[%emt 0:02:23]} 21. Nd4 {[%emt 0:02:07]} a5 {[%emt 0:02:21]} (21... Nf8 $5 {[%cal Rc5e4]}) 22. Qd2 {[%emt 0:04:00]} Nxd4 {[%emt 0:06:21]} 23. Bxd4 {[%emt 0:00:07]} Bxd4 {[%emt 0:00:24]} 24. Qxd4 {[%emt 0:00:01]} Rad8 {[%emt 0:00:26]} 25. Re2 {[%emt 0:03:59]} Qe5 {[%emt 0:04:33]} 26. Qd2 {[%emt 0:01:20]} Kg7 {[%emt 0:01:25][%cal Oh5h4]} 27. f4 {[%emt 0:00:50]} Qf6 {[%emt 0:00:40]} 28. Qe3 {[%emt 0:00:50]} b6 {[%emt 0:00:56]} 29. h4 {[%emt 0:02:44]} Qe6 {[%emt 0:01:28]} 30. b3 {[%emt 0:00:40]} f6 {[%emt 0:00:20]} 31. Qf3 {[%emt 0:00:47]} Qg4 {[%emt 0:00:21]} 32. Red2 {[%emt 0:00:48]} Re6 {[%emt 0:00:56]} 33. Rd4 {[%emt 0:05:27][%cal Bd2d4,Bd4e4,Be4e1][%mdl 32]} Kf7 {[%emt 0:02:00]} 34. Qf2 {[%emt 0:00:47][%cal Oe4e5]} Nxe4 {[%emt 0:01:40]} 35. Nxe4 $14 {[%emt 0:03:29]} Rxe4 {[%emt 0:00:07]} 36. Rxe4 {[%emt 0:00:04]} Qxd1 $11 {[%emt 0:00:06][%mdl 4096] Endgame KQR-KQR} 37. Re1 {[%emt 0:01:15]} Qd3 {[%emt 0:00:51]} 38. Qxb6 {[%emt 0:00:15] White wants to mate with Qc7+.} Qd2+ {[%emt 0:00:51]} 39. Kf1 {[%emt 0:00:05] Threatening mate with Qc7+.} Re8 {[%emt 0:00:42]} 40. Rxe8 {[%emt 0:01:00] Chess con chili.} Kxe8 {[%emt 0:00:07]} 41. Qxc6+ $14 {[%emt 0:00:03] KQ-KQ} Ke7 {[%emt 0:00:13]} 42. Qe4+ {[%emt 0:00:36]} Kd7 $1 {[%emt 0:00:48]} 43. f5 {[%emt 0:02:23]} (43. Qe2 $5 {[%cal Re2d2]} Qd4 44. Qc2 $14) 43... Qd1+ {[%emt 0:01:32]} 44. Kg2 {[%emt 0:00:10]} (44. Kf2 $14 g5 45. hxg5 (45. Qe6+ Kc7 $16) 45... fxg5 46. Qe6+ Kd8 47. Qf6+ Kc8 48. Qf8+ (48. Qxg5 Qc2+ 49. Kg1 Qd1+ 50. Kh2 Qe2+ 51. Kg1 Qe1+ 52. Kh2 Qe2+ 53. Kh3 Qf1+ 54. Kh2 Qe2+ $11) 48... Kd7 49. Qf7+ (49. Qg7+ Kc6 $14) 49... Kd8 50. Qf6+ Kc8 51. Qb2 (51. Qxg5 Qc2+ 52. Kg1 Qd1+ 53. Kh2 Qe2+ 54. Kh3 Qf1+ 55. Kh2 Qe2+ 56. Kg1 Qe1+ 57. Kh2 Qe2+ $11)) 44... gxf5 {[%emt 0:00:11]} (44... g5 $1 $11) 45. Qxf5+ $16 {[%emt 0:00:04]} Ke7 {[%emt 0:00:13]} 46. Qe4+ {[%emt 0:01:07]} (46. Qxa5 $6 Qe2+ 47. Kh3 Qg4+ 48. Kg2 Qe2+ 49. Kh1 Qd1+ 50. Kg2 Qe2+ $11) 46... Kd7 {[%emt 0:00:36]} (46... Kf8 $16) 47. Kh2 $2 {[%emt 0:01:27]} (47. Qf5+ Ke7 48. Qe4+ (48. Qxa5 Qe2+ 49. Kg1 Qe3+ 50. Kh1 Qf3+ 51. Kh2 Qe2+ 52. Kh3 Qg4+ 53. Kh2 Qe2+ 54. Kh3 Qg4+ 55. Kh2 Qe2+ $11) 48... Kd7 $16) (47. Kf2 $18) 47... Qd2+ $11 {[%emt 0:01:07]} 48. Qg2 {[%emt 0:00:04]} Qd1 {[%emt 0:01:08]} 49. Qf2 {[%emt 0:00:53]} Ke7 {[%emt 0:00:24]} 50. Kg2 {[%emt 0:00:21]} Kf7 {[%emt 0:00:38]} (50... Qd3 $14) 51. Qf3 $1 $16 {[%emt 0:01:55]} (51. Qa7+ Kg6) 51... Qd2+ {[%emt 0:00:07]} 52. Kh3 {[%emt 0:00:09]} Kg6 {[%emt 0:00:13]} 53. Qe4+ {[%emt 0:00:10]} (53. g4 $1 $16 {[%cal Rg4h5]}) 53... Kg7 $1 $14 {[%emt 0:00:28]} 54. Qe7+ {[%emt 0:00:58]} Kg6 {[%emt 0:00:18]} 55. Qe4+ {[%emt 0:00:32]} Kg7 $1 {[%emt 0:00:09]} 56. a3 {[%emt 0:00:46]} ({White should try} 56. g4 $14) 56... Qd1 $11 {[%emt 0:00:34]} 57. b4 {[%emt 0:00:25]} Qf1+ {[%emt 0:01:49]} ({But not} 57... axb4 58. axb4 Qg1 59. b5 $16) 58. Kh2 {[%emt 0:00:22]} axb4 {[%emt 0:01:08]} ({Better is} 58... a4 $14) 59. axb4 $16 {[%emt 0:00:02] aiming for b5.} Qf2+ {[%emt 0:01:32]} (59... Kf7 $16 60. b5 f5) 60. Qg2 $18 {[%emt 0:00:01]} Qd4 {[%emt 0:00:26]} 61. Qc2 $1 {[%emt 0:00:40] And now c5 would win.} Kf7 {[%emt 0:00:55]} 62. Qe2 {[%emt 0:01:28]} Kf8 {[%emt 0:00:37] [#]} 63. Kg2 $2 {[%emt 0:00:20]} ({Weaker is} 63. Qxh5 Qf2+ 64. Kh3 Qf1+ 65. Kh2 Qf2+ 66. Kh3 Qf1+ 67. Kh2 Qf2+ $11) (63. b5 $1 $18) 63... Kg7 $2 {[%emt 0:00:28]} (63... d5 $16 {was worth a try.}) 64. b5 {[%emt 0:01:25]} ({Don't take} 64. Qxh5 $6 Qe4+ 65. Kh2 Qxc4 $16) 64... Kg6 {[%emt 0:00:38]} 65. Qe8+ {[%emt 0:00:26]} Kh6 $2 {[%emt 0:00:11]} (65... Kg7 66. Qxh5 Qxc4) 66. Qh8+ {[%emt 0:00:10]} Kg6 {[%emt 0:00:07] [#]} 67. Qg8+ $1 {[%emt 0:00:03]} Kh6 {[%emt 0:00:10]} 68. Qd5 {[%emt 0:00:08] Inhibits Qe4+.} Qb2+ {[%emt 0:00:20]} 69. Kf3 Qc3+ $2 {[%emt 0:00:39]} (69... Kg7 70. Qd3 Qb4) 70. Kf4 {[%emt 0:01:09]} Kg6 {[%emt 0:00:09]} 71. Qe4+ {[%emt 0:00:04]} Kg7 {[%emt 0:00:42]} 72. b6 {[%emt 0:01:28]} (72. Kf5 $142 Qxg3 73. Qe7+ Kh8 74. Qxf6+ Kh7 75. Ke6) 72... Qd2+ {[%emt 0:01:13]} 73. Qe3 {[%emt 0:00:06]} Qb4 {[%emt 0:00:22]} 74. Kf5 {[%emt 0:00:13] White threatens Qe7+ and mate.} Qb1+ {[%emt 0:00:53]} 75. Ke6 {[%emt 0:00:10] White mates.} Qb4 {[%emt 0:00:19]} 76. Qd4 {[%emt 0:00:14][%csl LRd6,LRf6]} Qb3 {[%emt 0:00:47]} 77. Qxf6+ {[%emt 0:01:19]} Kg8 {[%emt 0:00:22]} 78. Qg6+ {[%emt 0:00:15] Weighted Error Value: White=0.20 (precise) /Black=0.16 (very precise)} 1-0